fUSD/lending_fUSD_20250120
["ID","MTS","AMOUNT","RATE_DAILY","PERIOD"]
[349712839,1737389452288,-2869.61258246,0.00021862,2]
[349712840,1737389452301,-18801.23541483,0.00021863,2]
[349712841,1737389452314,-280.42,0.00021863,30]
[349712844,1737389452326,-18801.23541483,0.00021864,2]
[349712846,1737389452339,-1358.94211521,0.00021867,2]
[349712851,1737389453136,-581.0,0.000193,3]
[349712852,1737389453146,-879.04333575,0.000198,5]
[349712853,1737389453168,-4679.95666425,0.000198,5]
[349712854,1737389453179,-723.43,0.00019989,2]
[349712855,1737389453188,-500.0,0.00019989,2]
[349712856,1737389453197,-538.04,0.00020171,2]
[349712857,1737389453206,-723.43,0.00020263,2]
[349712858,1737389453215,-538.04,0.00020445,2]
[349712859,1737389453225,-723.43,0.00020537,2]
[349712860,1737389453235,-538.04,0.00020719,2]
[349712861,1737389453245,-723.43,0.00020811,2]
[349712862,1737389453254,-538.04,0.00020993,2]
[349712863,1737389453264,-723.43,0.00021085,2]
[349712864,1737389453274,-1105.0,0.00021228,2]
[349712865,1737389453285,-538.04,0.00021267,2]
[349712866,1737389453296,-723.43,0.00021359,2]
[349712867,1737389453305,-1844.45,0.00021367,2]
[349712868,1737389453314,-538.04,0.00021541,2]
[349712869,1737389453324,-723.43,0.00021633,2]
[349712870,1737389453333,-1844.45,0.00021641,2]
[349712871,1737389453343,-538.04,0.00021815,2]
[349712872,1737389453352,-1809.92814095,0.00021867,2]
[349712873,1737389453361,-790.121949,0.00021869,2]
[349712874,1737389453371,-2869.61258246,0.00021869,2]
[349712875,1737389453687,-790.121949,0.00021869,2]
[349712876,1737389453701,-295.93637065,0.00021874,2]
[349712877,1737389453713,-150.0,0.00021875,2]
[349712878,1737389453724,-295.93637065,0.00021875,2]
[349712879,1737389453734,-444.19597304,0.00021876,2]
[349712880,1737389453746,-381.45020326,0.00021876,2]
[349712881,1737389453755,-34.51179674,0.00021877,2]
[349712882,1737389453806,-115.48820326,0.00021877,2]
[349712883,1737389453815,-150.0,0.0002188,2]
[349712884,1737389453824,-600.31778727,0.00021883,2]
[349712885,1737389453835,-589.51727399,0.00021883,2]
[349712886,1737389453846,-1679.7775212,0.00021883,2]
[349712887,1737389453855,-2513.31478744,0.00021885,2]
[349712888,1737389453864,-897.5206,0.0002189,2]
[349712889,1737389453873,-2000.0,0.0002189,2]
[349712890,1737389453883,-500.0,0.0002189,2]
[349712891,1737389453892,-1369.80634461,0.00021892,2]
[349712892,1737389453901,-1369.80634461,0.00021893,2]
[349712893,1737389453910,-8082.14182686,0.00021893,2]
[349712894,1737389453919,-150.0,0.00021894,2]
[349712895,1737389453928,-152.0,0.00021895,4]
[349712896,1737389453937,-150.0,0.00021896,2]
[349712897,1737389453946,-174.84894611,0.000219,2]
[349712898,1737389453955,-2000.0,0.000219,2]
[349712899,1737389453964,-168.12076724,0.000219,2]
[349712900,1737389453974,-168.12076724,0.000219,2]
[349712901,1737389453983,-168.12076724,0.000219,2]
[349712902,1737389453993,-168.12076724,0.000219,2]
[349712903,1737389454002,-1474.35498025,0.000219,2]
[349712904,1737389454011,-975.28116572,0.000219,3]
[349712905,1737389454020,-512.49654467,0.000219,2]
[349712906,1737389454029,-2982.66108838,0.000219,2]
[349712907,1737389454039,-2074.0,0.000219,2]
[349712908,1737389454049,-150.0,0.00021902,2]
[349712909,1737389454061,-500.0,0.00021907,2]
[349712910,1737389454072,-500.0,0.00021907,2]
[349712911,1737389454081,-579.67,0.00021907,2]
[349712912,1737389454091,-531.01,0.00021907,2]
[349712913,1737389454100,-500.0,0.00021907,2]
[349712914,1737389454109,-712.92,0.00021907,2]
[349712915,1737389454118,-500.0,0.00021907,2]
[349712916,1737389454129,-500.0,0.00021907,2]
[349712917,1737389454138,-500.0,0.00021907,2]
[349712918,1737389454148,-515.32651365,0.00021907,2]
[349712919,1737389454157,-500.0,0.00021907,2]
[349712920,1737389454166,-876.98,0.00021907,2]
[349712921,1737389454175,-1382.83,0.00021907,2]
[349712922,1737389454185,-753.98,0.00021907,2]
[349712923,1737389454194,-500.0,0.00021907,2]
[349712924,1737389454204,-500.0,0.00021907,2]
[349712925,1737389454213,-741.58,0.00021907,2]
[349712926,1737389454222,-544.38219723,0.00021907,2]
[349712927,1737389454232,-500.0,0.00021907,2]
[349712928,1737389454242,-723.43,0.00021907,2]
[349712929,1737389454251,-1000.0,0.00021908,2]
[349712930,1737389454260,-150.0,0.0002191,2]
[349712931,1737389454268,-150.0,0.00021912,2]
[349712932,1737389454278,-500.0,0.00021915,2]
[349712933,1737389454287,-500.0,0.00021915,2]
[349712934,1737389454296,-858.76,0.00021915,2]
[349712935,1737389454306,-548.88,0.00021915,2]
[349712936,1737389454316,-500.0,0.00021915,2]
[349712937,1737389454326,-500.0,0.00021915,2]
[349712938,1737389454335,-857.91,0.00021915,2]
[349712939,1737389454344,-1039.94,0.00021915,2]
[349712940,1737389454353,-886.58,0.00021915,2]
[349712941,1737389454362,-1019.8,0.00021915,2]
[349712942,1737389454371,-500.0,0.00021915,2]
[349712943,1737389454380,-1178.2,0.00021915,2]
[349712944,1737389454390,-67.32807031,0.00021915,2]
[349712945,1737389454406,-618.67192969,0.00021915,2]
[349712946,1737389454416,-345.52056999,0.00021915,2]
[349712947,1737389454428,-370.73943001,0.00021915,2]
[349712948,1737389454437,-500.0,0.00021915,2]
[349712949,1737389454446,-1409.72,0.00021915,2]
[349712950,1737389454455,-376.37634509,0.00021915,2]
[349712951,1737389454464,-25.20306214,0.00021915,2]
[349712952,1737389454477,-474.79693786,0.00021915,2]
[349712953,1737389454489,-539.6,0.00021915,2]
[349712954,1737389454499,-1525.47267048,0.00021915,2]
[349712955,1737389454511,-1802.06732952,0.00021915,2]
[349712956,1737389454522,-683.22,0.00021915,2]
[349712957,1737389454531,-500.0,0.00021915,2]
[349712958,1737389454540,-825.28,0.00021915,2]
[349712959,1737389454550,-944.94,0.00021915,2]
[349712960,1737389454560,-1844.45,0.00021915,2]
[349712961,1737389454569,-150.0,0.00021916,2]
[349712962,1737389454578,-500.0,0.00021917,3]
[349712963,1737389454588,-500.0,0.00021917,3]
[349712964,1737389454597,-500.0,0.00021917,3]
[349712965,1737389454607,-500.0,0.00021917,3]
[349712966,1737389454616,-500.0,0.00021917,3]
[349712967,1737389454625,-500.0,0.00021917,3]
[349712968,1737389454637,-500.0,0.00021917,3]
[349712969,1737389454650,-150.0,0.00021918,2]
[349712970,1737389454659,-150.0,0.00021918,2]
[349712971,1737389454668,-47.50747047,0.00021921,2]
[349712972,1737389454680,-102.49252953,0.00021921,2]
[349712973,1737389454689,-150.0,0.00021943,2]
[349712974,1737389454698,-150.0,0.00021948,2]
[349712975,1737389454707,-174.95,0.00021958,2]
[349712976,1737389454716,-164.37410396,0.00021973,2]
[349712977,1737389454727,-502.13754415,0.00021973,2]
[349712978,1737389454737,-242.45340405,0.00021973,4]
[349712979,1737389454746,-150.0,0.00021974,2]
[349712980,1737389454755,-150.0,0.00021985,2]
[349712981,1737389454764,-2000.0,0.00021999,2]
[349712982,1737389454774,-500.0,0.00021999,2]
[349712983,1737389454784,-500.0,0.00021999,2]
[349712984,1737389454793,-208.9384437,0.00021999,2]
[349712985,1737389454803,-609.61521024,0.00022,2]
[349712986,1737389454812,-5054.09062939,0.00022,2]
[349712987,1737389454829,-385.645,0.00022,2]
[349712988,1737389454866,-1072.84961384,0.00020347,2]
[349712989,1737389454876,-92879.97004952,0.00022,2]
[349712990,1737389454887,-420.7117,0.00022,2]
[349712991,1737389454899,-447.2356886,0.00022,2]
[349712992,1737389454914,-52500.0,0.00022,2]
[349712993,1737389454975,-23035.4194404,0.00022,2]
[349712994,1737389455048,-500.0,0.00019989,2]
[349712995,1737389455057,-500.0,0.00020263,2]
[349712996,1737389455067,-48.6,0.00020537,2]
[349712997,1737389455079,-451.4,0.00020537,2]
[349712998,1737389455088,-242.58584373,0.00022,2]
[349712999,1737389455103,-500.0,0.00020811,2]
[349713000,1737389455113,-3701.4,0.00022,2]
[349713001,1737389455124,-1055.9,0.00022,2]
[349713002,1737389455135,-739.50877,0.00022,2]
[349713003,1737389455146,-28266.25449955,0.00022,2]
[349713004,1737389455157,-14185.30066,0.00022,2]
[349713005,1737389455168,-3104.95938,0.00022,2]
[349713006,1737389455179,-5972.15619,0.00022,2]
[349713007,1737389455189,-674.48849318,0.00022,2]
[349713008,1737389455200,-5158.54490338,0.00022,2]
[349713009,1737389455223,-500.0,0.00021085,2]
[349713010,1737389455232,-177.2128,0.00021359,2]
[349713011,1737389455246,-322.7872,0.00021359,2]
[349713012,1737389455255,-644.75,0.00021633,2]
[349713013,1737389455265,-1798.951505,0.00022,2]
[349713014,1737389455276,-546.89,0.00022,2]
[349713015,1737389455287,-3162.0,0.00022,2]
[349713016,1737389455299,-11850.91204221,0.00022,2]
[349713017,1737389455311,-415.1,0.00022,2]
[349713018,1737389455712,-13614.672262,0.00022,2]
[349713019,1737389455724,-5260.0,0.00022,2]
[349713020,1737389455788,-500.0,0.00019989,2]
[349713021,1737389455798,-6959.68293359,0.00022,2]
[349713022,1737389455815,-293.05940177,0.00022,2]
[349713023,1737389455826,-1363.73760309,0.00022,2]
[349713024,1737389455840,-10535.99999999,0.00022,2]
[349713025,1737389455851,-2091.8,0.00022,2]
[349713026,1737389455862,-5213.12375944,0.00022,2]
[349713027,1737389455873,-102266.8138142,0.00022,2]
[349713028,1737389455883,-2510.0000002,0.00022,2]
[349713029,1737389455899,-500.0,0.00019989,2]
[349713030,1737389455908,-11376.39998308,0.00022,2]
[349713031,1737389455919,-21130.0,0.00022,2]
[349713032,1737389455930,-200091.52360333,0.00022,2]
[349713033,1737389455941,-9326.6844812,0.00022,2]
[349713034,1737389455952,-1023.786069,0.00022,2]
[349713035,1737389455963,-266.1875,0.00022,2]
[349713036,1737389455979,-1072.84961384,0.00020758,2]
[349713037,1737389455990,-924.78878392,0.00022,2]
[349713038,1737389456105,-500.0,0.00020171,2]
[349713039,1737389456114,-500.0,0.00020445,2]
[349713040,1737389456123,-500.0,0.00020719,2]
[349713041,1737389456133,-1786.79999,0.00022,2]
[349713042,1737389456144,-329.21,0.00022,2]
[349713043,1737389456155,-6401.99999999,0.00022,2]
[349713044,1737389456166,-255.40910004,0.00022,2]
[349713045,1737389456177,-263.8330006,0.00022,2]
[349713046,1737389456188,-432.09496654,0.00022,2]
[349713047,1737389456199,-223788.52153913,0.00022,2]
[349713048,1737389456210,-31524.0,0.00022,2]
[349713049,1737389456221,-1364.749998,0.00022,2]
[349713050,1737389456232,-10500.5,0.00022,2]
[349713051,1737389456247,-20428.28000014,0.00022,2]
[349713052,1737389456257,-394.10692852,0.00022,2]
[349713053,1737389456273,-283.32,0.00020993,2]
[349713054,1737389456283,-393.21678375,0.00022,2]
[349713055,1737389456294,-4040.79873874,0.00022,2]
[349713056,1737389456305,-2105.19254554,0.00022,2]
[349713057,1737389456317,-1957.704,0.00022,2]
[349713058,1737389456328,-5101.86690139,0.00022,2]
[349713060,1737389456340,-350657.06231575,0.00022,2]
[349713061,1737389456351,-3564.3471787,0.00022,2]
[349713062,1737389456362,-8224.3540861,0.00022,2]
[349713063,1737389456373,-801.12141438,0.00022,2]
[349713064,1737389456406,-4958.317,0.00022,2]
[349713065,1737389456417,-1200.0,0.00022,2]
[349713066,1737389456428,-1670.0,0.00022,2]
[349713067,1737389456439,-5132.2190332,0.00022,2]
[349713068,1737389456450,-2112.7,0.00022,2]
[349713069,1737389456461,-313.06330969,0.00022,2]
[349713070,1737389457092,191.83,0.00010137,2]
[349713072,1737389887834,2500.0,0.00024,120]
[349713073,1737389913115,1000.0,0.00020211,60]
[349713074,1737390308308,2049252.37061972,0.00012,2]
[349713075,1737390401143,-237.35,0.00012329,2]
[349713076,1737390401164,-2279.00384716,0.00013381,2]
[349713078,1737390478513,1714.38349584,0.0001,2]
[349713079,1737390482432,994736.1463378,0.0001,2]
[349713084,1737390565082,-438.42654722,0.00013781,7]
[349713085,1737390565104,-351.28427538,0.00014792,2]
[349713086,1737390568070,150.5,0.00010137,2]
[349713106,1737390636252,-183.68475271,0.00014794,2]
[349713108,1737390636262,-1633.98925377,0.00014891,2]
[349713109,1737390636272,-1633.98925376,0.00014892,2]
[349713110,1737390636282,-120.77221932,0.00014991,2]
[349713111,1737390636520,-743.14304928,0.00014991,2]
[349713112,1737390636532,-8101.44727721,0.00014991,2]
[349713113,1737390636541,-300.0,0.00014991,2]
[349713114,1737390636550,-300.0,0.00014991,2]
[349713115,1737390636562,-177.26,0.00014994,2]
[349713116,1737390636571,-550.0,0.00015,2]
[349713117,1737390636581,-164.4,0.00015265,2]
[349713118,1737390636591,-325.0,0.00016407,2]
[349713119,1737390636600,-600.0,0.00017,2]
[349713120,1737390636610,-1152.03,0.00017164,2]
[349713121,1737390636619,-537.262539,0.00017736,2]
[349713122,1737390636629,-1000.0,0.00017826,2]
[349713123,1737390636638,-250.0,0.00017906,2]
[349713124,1737390636648,-1.25978253,0.00017923,2]
[349713125,1737390636668,-2227.04021747,0.00017923,2]
[349713126,1737390636677,-6270.39,0.00017941,2]
[349713127,1737390636687,-845.93,0.00017974,2]
[349713128,1737390636696,-200.0,0.00017994,2]
[349713129,1737390636705,-250.0,0.00018043,2]
[349713130,1737390636715,-500.0,0.00018073,3]
[349713131,1737390636725,-600.0,0.00018164,2]
[349713132,1737390636735,-500.0,0.00018164,2]
[349713133,1737390636744,-324.15,0.00018399,2]
[349713134,1737390636754,-1132.12,0.00018408,2]
[349713135,1737390636763,-168.75,0.00018408,2]
[349713136,1737390636773,-250.0,0.00018413,2]
[349713137,1737390636783,-150.0,0.00018427,2]
[349713138,1737390636794,-309.65,0.00018427,2]
[349713139,1737390636804,-2119.55,0.00018455,2]
[349713140,1737390636814,-377.56138793,0.00018482,2]
[349713141,1737390636823,-23264.05,0.00018483,2]
[349713142,1737390636833,-23338.84,0.00018511,2]
[349713143,1737390636842,-158.17,0.00018777,2]
[349713144,1737390636852,-31371.46009512,0.0001878,2]
[349713145,1737390636901,-1272.40368,0.0001878,2]
[349713146,1737390636912,-2062.75887011,0.0001878,2]
[349713147,1737390636922,-177.54,0.00018806,2]
[349713148,1737390636932,-292.64,0.00018817,30]
[349713149,1737390636942,-2893.13,0.00018823,2]
[349713150,1737390636951,-441.21,0.00018823,2]
[349713151,1737390636960,-1890.23,0.00018879,2]
[349713152,1737390636969,-150.0,0.00018908,2]
[349713153,1737390636979,-500.0,0.00018996,2]
[349713154,1737390636988,-175.56,0.00019055,2]
[349713155,1737390636999,-174.95,0.00019082,2]
[349713156,1737390637009,-1910.0,0.000192,2]
[349713157,1737390637020,-600.0,0.0001926,2]
[349713158,1737390637029,-780.59,0.0001927,2]
[349713159,1737390637038,-691.34,0.00019312,2]
[349713160,1737390637047,-1680.55,0.00019328,2]
[349713161,1737390637057,-9999.99,0.00019339,2]
[349713162,1737390637067,-299.99,0.00019339,7]
[349713163,1737390637076,-9079.01,0.00019339,2]
[349713164,1737390637085,-9999.99,0.00019339,2]
[349713165,1737390637097,-150.99,0.00019339,2]
[349713166,1737390637106,-150.99,0.00019339,2]
[349713167,1737390637115,-999.99,0.00019339,2]
[349713168,1737390637125,-1152.03,0.00019428,2]
[349713169,1737390637134,-173.6,0.00019698,2]
[349713170,1737390637143,-1000.0,0.00019726,14]
[349713171,1737390637153,-597.824158,0.000199,2]
[349713172,1737390637162,-283.03124027,0.000199,2]
[349713173,1737390637171,-416.6583,0.000199,2]
[349713174,1737390637181,-1000.0,0.000199,2]
[349713175,1737390637191,-1471.882,0.00019971,2]
[349713176,1737390637200,-541.8541,0.00019971,2]
[349713177,1737390637210,-1024.091,0.00019988,2]
[349713178,1737390637219,-500.0,0.00019989,2]
[349713179,1737390637229,-500.0,0.00019989,2]
[349713180,1737390637239,-500.0,0.00019989,2]
[349713181,1737390637248,-500.0,0.00019989,2]
[349713183,1737390637257,-500.0,0.00019989,2]
[349713185,1737390637266,-500.0,0.00019989,2]
[349713187,1737390637276,-500.0,0.00019989,2]
[349713189,1737390637285,-500.0,0.00019989,2]
[349713191,1737390637294,-500.0,0.00019989,2]
[349713193,1737390637304,-500.0,0.00019989,2]
[349713195,1737390637314,-500.0,0.00019989,2]
[349713197,1737390637327,-500.0,0.00019989,2]
[349713200,1737390637341,-500.0,0.00019989,2]
[349713202,1737390637353,-500.0,0.00019989,2]
[349713204,1737390637364,-500.0,0.00019989,2]
[349713207,1737390637375,-500.0,0.00019989,2]
[349713209,1737390637386,-500.0,0.00019989,2]
[349713211,1737390637396,-500.0,0.00019989,2]
[349713213,1737390637407,-500.0,0.00019989,2]
[349713215,1737390637418,-500.0,0.00019989,2]
[349713218,1737390637430,-500.0,0.00019989,2]
[349713220,1737390637441,-500.0,0.00019989,2]
[349713222,1737390637452,-500.0,0.00019989,2]
[349713224,1737390637463,-500.0,0.00019989,2]
[349713226,1737390637475,-500.0,0.00019989,2]
[349713228,1737390637486,-500.0,0.00019989,2]
[349713231,1737390637498,-500.0,0.00019989,2]
[349713234,1737390637510,-500.0,0.00019989,2]
[349713235,1737390637520,-500.0,0.00019989,2]
[349713237,1737390637531,-500.0,0.00019989,2]
[349713239,1737390637542,-500.0,0.00019999,2]
[349713241,1737390637551,-500.0,0.00019999,2]
[349713243,1737390637568,-500.0,0.00019999,2]
[349713246,1737390637580,-500.0,0.00019999,2]
[349713249,1737390637592,-500.0,0.00019999,2]
[349713252,1737390637603,-613.47,0.00019999,2]
[349713255,1737390637615,-500.0,0.00019999,2]
[349713259,1737390637628,-508.88,0.00019999,2]
[349713262,1737390637639,-794.31,0.00019999,2]
[349713265,1737390637651,-649.25,0.00019999,2]
[349713268,1737390637663,-500.0,0.00019999,2]
[349713272,1737390637675,-500.0,0.00019999,2]
[349713275,1737390637687,-741.64,0.00019999,2]
[349713279,1737390637700,-500.0,0.00019999,2]
[349713284,1737390637713,-500.0,0.00019999,2]
[349713289,1737390637726,-500.0,0.00019999,2]
[349713293,1737390637739,-500.0,0.00019999,2]
[349713297,1737390637750,-895.91,0.00019999,2]
[349713301,1737390637762,-1169.56,0.00019999,2]
[349713305,1737390637774,-500.0,0.00019999,2]
[349713308,1737390637787,-500.0,0.00019999,2]
[349713311,1737390637800,-500.0,0.00019999,2]
[349713314,1737390637817,-500.0,0.00019999,2]
[349713316,1737390637827,-500.0,0.00019999,2]
[349713318,1737390637840,-500.0,0.00019999,2]
[349713320,1737390637851,-1039.98,0.00019999,2]
[349713322,1737390637862,-195.14255704,0.00019999,2]
[349713324,1737390637873,-500.0,0.00019999,2]
[349713326,1737390637885,-500.0,0.00019999,2]
[349713328,1737390637898,-500.0,0.00019999,2]
[349713330,1737390637911,-500.0,0.00019999,2]
[349713332,1737390637923,-779.49,0.00019999,2]
[349713334,1737390637934,-500.0,0.00019999,2]
[349713336,1737390637946,-500.0,0.00019999,2]
[349713338,1737390637957,-288.998349,0.00019999,2]
[349713340,1737390637966,-500.0,0.00019999,2]
[349713342,1737390637976,-561.14,0.00019999,2]
[349713344,1737390637986,-863.71,0.00019999,2]
[349713346,1737390637996,-156.451378,0.00019999,2]
[349713348,1737390638008,-500.0,0.00019999,2]
[349713350,1737390638022,-500.0,0.00019999,2]
[349713352,1737390638033,-500.0,0.00019999,2]
[349713354,1737390638047,-500.0,0.00019999,2]
[349713356,1737390638063,-500.0,0.00019999,2]
[349713358,1737390638073,-500.0,0.00019999,2]
[349713360,1737390638083,-500.0,0.00019999,2]
[349713362,1737390638094,-500.0,0.00019999,2]
[349713364,1737390638104,-500.0,0.00019999,2]
[349713366,1737390638114,-500.0,0.00019999,2]
[349713368,1737390638124,-500.0,0.00019999,2]
[349713370,1737390638135,-500.0,0.00019999,2]
[349713372,1737390638147,-500.0,0.00019999,2]
[349713374,1737390638159,-500.0,0.00019999,2]
[349713376,1737390638169,-500.0,0.00019999,2]
[349713377,1737390638179,-500.0,0.00019999,2]
[349713379,1737390638190,-500.0,0.00019999,2]
[349713381,1737390638200,-1000.0,0.0002,14]
[349713383,1737390638210,-23545.72112025,0.0002,2]
[349713385,1737390638220,-99526.0299356,0.0002,2]
[349713387,1737390638230,-200.28056231,0.0002,4]
[349713390,1737390638240,-33999.94708456,0.0002,2]
[349713392,1737390638255,-305.58021484,0.0002,2]
[349713394,1737390638267,-1327.454549,0.0002,2]
[349713396,1737390638280,-3471.10967,0.0002,2]
[349713398,1737390638292,-883.70172705,0.0002,2]
[349713402,1737390638329,-10494.0,0.0002,2]
[349713405,1737390638350,-1035.40033908,0.0002,2]
[349713407,1737390638363,-13463.83983695,0.0002,2]
[349713409,1737390638373,-1466.35926234,0.0002,2]
[349713411,1737390638384,-7672.75259953,0.0002,2]
[349713413,1737390638394,-600.44571045,0.0002,2]
[349713415,1737390638405,-1000.0,0.00020054,2]
[349713417,1737390638415,-315.27682002,0.00020063,2]
[349713419,1737390638425,-2871.9072,0.00020071,2]
[349713421,1737390638435,-597.82415799,0.00020122,2]
[349713423,1737390638446,-283.03124019,0.00020122,2]
[349713425,1737390638456,-167.34876224,0.00020145,2]
[349713427,1737390638466,-971.9096,0.00020163,2]
[349713429,1737390638475,-16168.9043,0.00020163,2]
[349713431,1737390638486,-168.5231,0.00020163,2]
[349713433,1737390638496,-158.17,0.00020167,2]
[349713434,1737390638507,-500.0,0.0002017,2]
[349713436,1737390638528,-537.88,0.0002017,2]
[349713438,1737390638539,-500.0,0.0002017,2]
[349713441,1737390638550,-150.482952,0.0002017,2]
[349713442,1737390638563,-574.83,0.0002017,2]
[349713446,1737390638574,-500.0,0.0002017,2]
[349713448,1737390638585,-500.0,0.0002017,2]
[349713450,1737390638595,-1082.14,0.0002017,2]
[349713452,1737390638606,-700.18,0.0002017,2]
[349713454,1737390638617,-500.0,0.0002017,2]
[349713456,1737390638627,-591.05,0.0002017,2]
[349713458,1737390638637,-784.03,0.0002017,2]
[349713460,1737390638647,-561.5,0.0002017,2]
[349713463,1737390638658,-889.63,0.0002017,2]
[349713464,1737390638668,-500.0,0.0002017,2]
[349713466,1737390638679,-500.0,0.0002017,2]
[349713468,1737390638689,-520.61,0.0002017,2]
[349713470,1737390638700,-1145.37,0.0002017,2]
[349713472,1737390638711,-500.0,0.0002017,2]
[349713474,1737390638722,-186.545732,0.0002017,2]
[349713476,1737390638733,-500.0,0.0002017,2]
[349713478,1737390638743,-500.0,0.0002017,2]
[349713480,1737390638754,-552.02,0.0002017,2]
[349713482,1737390638765,-500.0,0.0002017,2]
[349713484,1737390638775,-775.14,0.0002017,2]
[349713486,1737390638785,-1471.06,0.0002017,2]
[349713488,1737390638797,-500.0,0.0002017,2]
[349713490,1737390638810,-882.24,0.0002017,2]
[349713492,1737390638821,-566.47,0.0002017,2]
[349713494,1737390638832,-811.81,0.0002017,2]
[349713496,1737390638842,-576.23,0.0002017,2]
[349713498,1737390638853,-541.7,0.0002017,2]
[349713500,1737390638863,-1491.88,0.0002017,2]
[349713502,1737390638874,-500.0,0.0002017,2]
[349713504,1737390638885,-500.0,0.00020171,2]
[349713505,1737390638895,-500.0,0.00020171,2]
[349713506,1737390638906,-500.0,0.00020171,2]
[349713507,1737390638916,-475.34801207,0.00020171,2]
[349713508,1737390638927,-500.0,0.00020171,2]
[349713509,1737390638938,-500.0,0.00020171,2]
[349713510,1737390638949,-500.0,0.00020263,2]
[349713511,1737390638959,-500.0,0.00020263,2]
[349713512,1737390638970,-500.0,0.00020263,2]
[349713513,1737390638980,-528.07,0.00020263,2]
[349713514,1737390638991,-500.0,0.00020263,2]
[349713515,1737390639002,-500.0,0.00020263,2]
[349713516,1737390639014,-500.0,0.00020263,2]
[349713518,1737390639027,-500.0,0.00020263,2]
[349713520,1737390639037,-500.0,0.00020263,2]
[349713522,1737390639048,-500.0,0.00020263,2]
[349713524,1737390639064,-500.0,0.00020263,2]
[349713526,1737390639074,-500.0,0.00020263,2]
[349713528,1737390639085,-500.0,0.00020263,2]
[349713531,1737390639098,-500.0,0.00020263,2]
[349713533,1737390639110,-500.0,0.00020263,2]
[349713535,1737390639120,-581.61,0.00020263,2]
[349713537,1737390639131,-500.0,0.00020263,2]
[349713539,1737390639143,-257.91,0.00020263,2]
[349713541,1737390639154,-500.0,0.00020263,2]
[349713543,1737390639164,-168.11537047,0.00020263,2]
[349713545,1737390639175,-679.30035135,0.00020273,14]
[349713548,1737390639185,-500.0,0.00020273,2]
[349713550,1737390639196,-500.0,0.00020273,2]
[349713552,1737390639207,-500.0,0.00020273,2]
[349713554,1737390639217,-500.0,0.00020273,2]
[349713556,1737390639227,-613.47,0.00020273,2]
[349713558,1737390639238,-500.0,0.00020273,2]
[349713560,1737390639248,-508.88,0.00020273,2]
[349713562,1737390639258,-794.31,0.00020273,2]
[349713565,1737390639269,-500.0,0.00020273,2]
[349713567,1737390639279,-500.0,0.00020273,2]
[349713569,1737390639290,-741.64,0.00020273,2]
[349713571,1737390639301,-500.0,0.00020273,2]
[349713573,1737390639315,-500.0,0.00020273,2]
[349713575,1737390639326,-500.0,0.00020273,2]
[349713577,1737390639336,-895.91,0.00020273,2]
[349713579,1737390639347,-1169.56,0.00020273,2]
[349713582,1737390639359,-500.0,0.00020273,2]
[349713584,1737390639370,-551.11,0.00020273,2]
[349713586,1737390639381,-589.18,0.00020273,2]
[349713588,1737390639390,-500.0,0.00020273,2]
[349713590,1737390639401,-500.0,0.00020273,2]
[349713592,1737390639411,-1039.98,0.00020273,2]
[349713594,1737390639421,-477.1,0.00020273,2]